bitfinex/quotes_SOLUSD_20250626
["timestamp","ask_amount","ask_price","bid_price","bid_amount"]
[1750952942772,5.1967338,142.85,142.82,18.79181043]
[1750952942955,6.46901324,142.87,142.82,18.79181043]
[1750952942956,5.1967338,142.84,142.82,18.79181043]
[1750952943159,5.1967338,142.86,142.82,18.79181043]
[1750952943357,5.1967338,142.85,142.82,18.79181043]
[1750952943567,5.1967338,142.84,142.82,18.79181043]
[1750952943772,5.1967338,142.87,142.82,18.79181043]
[1750952944069,5.1967338,142.86,142.82,18.79181043]
[1750952944275,5.1967338,142.85,142.82,18.79181043]
[1750952944443,5.1967338,142.84,142.82,18.79181043]
[1750952944644,5.1967338,142.87,142.82,18.79181043]
[1750952944844,5.1967338,142.86,142.82,18.79181043]
[1750952945146,5.1967338,142.85,142.82,18.79181043]
[1750952945348,5.1967338,142.84,142.82,18.79181043]
[1750952945661,5.1967338,142.87,142.82,18.79181043]
[1750952945854,5.1967338,142.86,142.82,18.79181043]
[1750952946054,5.1967338,142.87,142.82,18.79181043]
[1750952946262,5.1967338,142.86,142.82,18.79181043]
[1750952946460,5.1967338,142.85,142.82,18.79181043]
[1750952946779,6.46901324,142.89,142.82,18.79181043]
[1750952946780,5.1967338,142.84,142.82,18.79181043]
[1750952946959,5.1967338,142.83,142.82,18.79181043]
[1750952947281,5.1967338,142.86,142.82,18.79181043]
[1750952947587,5.1967338,142.86,142.79,88.7]
[1750952947588,5.1967338,142.85,142.8,18.64964886]
[1750952947875,5.1967338,142.84,142.81,0.14216157]
[1750952948045,5.1967338,142.83,142.81,0.14216157]
[1750952948246,5.1967338,142.82,142.81,0.14216157]
[1750952948454,5.1967338,142.85,142.81,0.14216157]
[1750952948677,5.1967338,142.84,142.81,0.14216157]
[1750952948878,5.1967338,142.83,142.81,0.14216157]
[1750952949050,5.1967338,142.82,142.81,0.14216157]
[1750952949249,5.1967338,142.85,142.81,0.14216157]
[1750952949472,5.1967338,142.84,142.81,0.14216157]
[1750952949678,5.1967338,142.83,142.81,0.14216157]
[1750952949889,5.1967338,142.86,142.83,0.14216157]
[1750952950254,5.1967338,142.85,142.83,0.14216157]
[1750952950582,5.1967338,142.87,142.83,0.14216157]
[1750952950873,5.1967338,142.86,142.83,0.14216157]
[1750952951079,5.1967338,142.85,142.83,0.14216157]
[1750952951281,5.1967338,142.87,142.83,0.14216157]
[1750952951582,6.46901324,142.89,142.83,0.14216157]
[1750952951583,5.1967338,142.86,142.83,0.14216157]
[1750952951761,5.1967338,142.85,142.83,0.14216157]
[1750952952078,5.1967338,142.88,142.83,0.14216157]
[1750952952273,5.1967338,142.87,142.83,0.14216157]
[1750952952586,5.1967338,142.86,142.83,0.14216157]
[1750952952787,5.1967338,142.85,142.83,0.14216157]
[1750952952990,5.1967338,142.88,142.83,0.14216157]
[1750952953161,5.1967338,142.87,142.83,0.14216157]
[1750952953505,5.1967338,142.86,142.83,0.14216157]
[1750952953780,5.1967338,142.88,142.83,0.14216157]
[1750952953973,5.1967338,142.87,142.83,0.14216157]
[1750952954178,5.1967338,142.86,142.83,0.14216157]
[1750952954384,5.1967338,142.88,142.83,0.14216157]
[1750952954680,5.1967338,142.87,142.83,0.14216157]
[1750952954879,5.1967338,142.86,142.83,0.14216157]
[1750952955084,5.1967338,142.88,142.83,0.14216157]
[1750952955269,5.1967338,142.87,142.82,107.34964886]
[1750952955581,5.1967338,142.86,142.82,107.34964886]
[1750952955785,13.46821532,142.88,142.82,107.34964886]
[1750952955786,5.1967338,142.85,142.82,107.34964886]
[1750952955957,5.1967338,142.87,142.79,18.79181043]
[1750952956162,5.1967338,142.86,142.79,107.49181043]
[1750952956387,5.1967338,142.85,142.79,107.49181043]
[1750952956566,5.1967338,142.84,142.79,107.49181043]
[1750952956769,5.1967338,142.83,142.79,18.79181043]
[1750952956964,5.1967338,142.82,142.79,18.79181043]
[1750952957167,5.1967338,142.85,142.79,18.79181043]
[1750952957463,5.1967338,142.84,142.79,18.79181043]
[1750952957675,5.1967338,142.83,142.79,18.79181043]
[1750952957990,5.1967338,142.82,142.79,18.79181043]
[1750952958290,12.1971054,142.85,142.79,18.79181043]
[1750952958489,5.1967338,142.84,142.79,18.79181043]
[1750952958659,5.1967338,142.83,142.79,18.64964886]
[1750952958865,5.1967338,142.82,142.79,18.64964886]
[1750952959066,5.1967338,142.81,142.79,18.64964886]
[1750952959282,6.46901324,142.84,142.79,18.64964886]
[1750952959492,5.19697197,142.83,142.79,18.64964886]
[1750952959666,5.19697197,142.82,142.79,18.64964886]
[1750952959868,5.19697197,142.81,142.79,18.64964886]
[1750952960193,5.19861546,142.8,142.79,18.79181043]
[1750952960364,5.19861546,142.83,142.79,18.79181043]
[1750952960563,5.19861546,142.82,142.79,18.79181043]
[1750952960864,5.19861546,142.81,142.79,18.79181043]
[1750952961058,5.19861546,142.8,142.79,18.79181043]
[1750952961261,5.19861546,142.83,142.79,18.79181043]
[1750952961466,5.19861546,142.82,142.79,18.79181043]
[1750952961670,5.19861546,142.81,142.79,18.79181043]
[1750952961883,5.19861546,142.8,142.79,18.79181043]
[1750952962085,5.19861546,142.8,142.77,25.88964886]
[1750952962258,5.19861546,142.79,142.77,7.24]
[1750952962462,5.19861546,142.78,142.77,7.24]
[1750952963494,5.19861546,142.78,142.77,7.38216157]
[1750952963666,5.19861546,142.81,142.78,0.14216157]
[1750952963992,5.19861546,142.8,142.78,0.14216157]
[1750952964164,5.19861546,142.79,142.78,0.14216157]
[1750952964581,5.19861546,142.79,142.77,7.24]
[1750952964781,5.19861546,142.78,142.77,7.38216157]
[1750952964985,5.19861546,142.8,142.77,7.38216157]
[1750952965190,5.19861546,142.79,142.77,7.24]
[1750952965390,5.19861546,142.78,142.77,7.24]
[1750952966387,5.19861546,142.8,142.77,7.24]
[1750952966583,5.19861546,142.79,142.77,7.24]
[1750952966792,5.19861546,142.78,142.77,7.24]
[1750952966994,5.19861546,142.8,142.77,7.24]
[1750952967303,5.19861546,142.79,142.77,7.24]
[1750952967493,5.19861546,142.78,142.77,7.24]
[1750952967694,5.19861546,142.8,142.77,7.24]
[1750952967893,5.19861546,142.79,142.77,7.24]
[1750952968094,5.19861546,142.78,142.77,7.24]
[1750952968301,5.19861546,142.81,142.77,7.24]
[1750952968604,5.19861546,142.8,142.77,7.24]
[1750952968908,5.19861546,142.79,142.77,7.24]
[1750952969093,5.19861546,142.78,142.77,7.24]
[1750952969300,5.19861546,142.81,142.77,7.24]
[1750952969479,5.19861546,142.8,142.77,7.24]
[1750952969673,5.19861546,142.79,142.77,7.24]
[1750952969873,12.20093507,142.81,142.77,7.24]
[1750952970100,5.19861546,142.8,142.77,7.24]
[1750952970299,5.19861546,142.79,142.77,7.24]
[1750952970504,5.19861546,142.78,142.77,7.24]
[1750952970697,5.19861546,142.8,142.77,7.24]
[1750952970873,5.19861546,142.79,142.77,7.24]
[1750952971202,5.19861546,142.78,142.77,7.24]
[1750952971380,5.19861546,142.8,142.77,7.24]
[1750952971585,5.19861546,142.79,142.77,7.24]
[1750952971797,5.19861546,142.78,142.77,7.24]
[1750952971978,5.19861546,142.8,142.77,7.24]
[1750952972180,5.19861546,142.79,142.77,7.24]
[1750952972373,5.19861546,142.78,142.77,7.24]
[1750952972574,5.19861546,142.8,142.77,7.24]
[1750952972872,5.19861546,142.79,142.77,7.24]
[1750952973073,5.19861546,142.78,142.77,7.24]
[1750952973280,5.19861546,142.8,142.77,7.24]
[1750952973481,5.19861546,142.79,142.77,7.24]
[1750952973699,5.19861546,142.78,142.77,7.24]
[1750952973898,5.19861546,142.79,142.77,7.24]
[1750952974099,5.19861546,142.78,142.77,7.24]
[1750952974400,8.62535099,142.84,142.79,0.14216157]
[1750952974401,5.19861546,142.82,142.79,0.14216157]
[1750952974585,5.19861546,142.83,142.79,6.87774897]
[1750952974902,5.19861546,142.85,142.79,6.87774897]
[1750952975208,5.19861546,142.84,142.79,6.87774897]
[1750952975382,5.19861546,142.83,142.79,6.87774897]
[1750952975587,5.19861546,142.85,142.79,6.87774897]
[1750952975796,5.19861546,142.84,142.79,0.14216157]
[1750952975998,5.19861546,142.83,142.79,0.14216157]
[1750952976299,5.19861546,142.85,142.79,0.14216157]
[1750952976491,5.19861546,142.84,142.79,0.14216157]
[1750952976695,5.19861546,142.83,142.79,0.14216157]
[1750952976895,5.19861546,142.85,142.79,0.14216157]
[1750952977094,6.46901324,142.86,142.79,0.14216157]
[1750952977095,5.19861546,142.84,142.79,0.14216157]
[1750952977287,5.19861546,142.83,142.79,0.14216157]
[1750952977491,5.19861546,142.85,142.79,0.14216157]
[1750952977685,5.19861546,142.84,142.79,0.14216157]
[1750952977896,5.19861546,142.83,142.79,0.14216157]
[1750952978110,5.19861546,142.82,142.79,0.14216157]
[1750952978409,5.19861546,142.84,142.79,0.14216157]
[1750952978586,5.19861546,142.83,142.79,0.14216157]
[1750952978789,5.19861546,142.82,142.79,0.14216157]
[1750952978992,5.19861546,142.84,142.79,0.14216157]
[1750952979304,5.19861546,142.83,142.79,0.14216157]
[1750952979502,5.19861546,142.82,142.78,0.14216157]
[1750952979813,5.19861546,142.81,142.77,7.24]
[1750952980108,5.19861546,142.8,142.77,7.24]
[1750952980279,5.19861546,142.79,142.77,7.24]
[1750952980483,5.19861546,142.81,142.77,7.24]
[1750952980687,5.19861546,142.8,142.77,7.24]
[1750952980900,5.19861546,142.79,142.77,7.24]
[1750952981084,5.19861546,142.81,142.77,7.24]
[1750952981282,5.19861546,142.8,142.77,7.24]
[1750952981489,5.19861546,142.79,142.77,7.24]
[1750952981693,5.19861546,142.81,142.77,7.24]
[1750952981902,5.19861546,142.8,142.77,7.24]
[1750952982092,5.19861546,142.79,142.77,7.24]
[1750952982294,5.19861546,142.81,142.77,7.24]
[1750952982484,5.19861546,142.8,142.77,7.24]
[1750952982686,5.19861546,142.79,142.77,7.24]
[1750952983005,5.19861546,142.81,142.77,7.24]
[1750952983209,5.19861546,142.8,142.77,7.24]
[1750952983376,5.19861546,142.79,142.77,7.24]
[1750952983682,5.19861546,142.81,142.77,7.24]
[1750952984005,5.19861546,142.8,142.77,7.24]
[1750952984305,5.19861546,142.82,142.77,7.24]
[1750952984506,5.19861546,142.81,142.77,7.24]
[1750952984805,5.19861546,142.8,142.77,7.24]
[1750952985103,12.20059674,142.82,142.77,7.24]
[1750952985424,5.19861546,142.81,142.77,7.24]
[1750952985717,5.19861546,142.8,142.77,7.24]
[1750952985892,5.19861546,142.81,142.77,7.24]
[1750952986216,5.19861546,142.8,142.77,7.24]
[1750952986428,5.19861546,142.81,142.77,7.24]
[1750952986588,5.19861546,142.8,142.77,7.24]
[1750952986789,5.19861546,142.82,142.77,7.24]
[1750952986989,5.19861546,142.81,142.77,7.24]
[1750952987209,5.19861546,142.8,142.77,7.24]
[1750952987414,5.19861546,142.82,142.77,7.24]
[1750952987621,5.19861546,142.81,142.77,7.24]
[1750952987832,5.19861546,142.8,142.77,7.24]
[1750952987997,5.19861546,142.82,142.77,7.24]
[1750952988193,5.19861546,142.81,142.77,7.24]
[1750952988393,5.19861546,142.8,142.77,7.24]
[1750952988596,5.19861546,142.82,142.78,18.79181043]
[1750952988798,5.19861546,142.81,142.78,18.79181043]
[1750952989001,5.19861546,142.83,142.78,18.79181043]
[1750952989198,5.19861546,142.82,142.78,18.79181043]
[1750952989412,5.19861546,142.81,142.78,18.79181043]
[1750952989606,5.19861546,142.83,142.78,18.79181043]
[1750952989925,5.19861546,142.82,142.78,18.79181043]
[1750952990115,5.19861546,142.81,142.78,18.79181043]
[1750952990326,5.19861546,142.83,142.78,18.79181043]
[1750952990501,5.19861546,142.82,142.78,18.79181043]
[1750952990827,5.19861546,142.81,142.78,18.79181043]
[1750952991023,5.19861546,142.8,142.78,18.79181043]
[1750952991194,5.19861546,142.83,142.78,18.79181043]
[1750952991395,5.19861546,142.82,142.78,18.79181043]
[1750952991595,5.19861546,142.81,142.78,18.79181043]
[1750952991816,5.19861546,142.8,142.78,18.79181043]
[1750952992031,5.19861546,142.82,142.78,18.79181043]
[1750952992214,5.19861546,142.81,142.78,18.79181043]
[1750952992401,5.19861546,142.8,142.78,18.79181043]
[1750952992599,5.19861546,142.82,142.78,18.79181043]
[1750952992814,5.19861546,142.81,142.78,18.79181043]
[1750952993009,5.19861546,142.8,142.78,18.79181043]
[1750952993305,12.20045683,142.82,142.77,7.24]
[1750952993509,5.19861546,142.81,142.77,7.24]
[1750952993713,5.19861546,142.8,142.77,7.24]
[1750952993927,5.19861546,142.81,142.77,7.24]
[1750952994127,5.19861546,142.8,142.77,7.24]
[1750952994334,5.19861546,142.81,142.77,7.24]
[1750952994629,5.19861546,142.8,142.77,7.24]
[1750952994932,5.19861546,142.79,142.77,7.24]
[1750952995120,5.19861546,142.81,142.77,7.24]
[1750952995305,5.19861546,142.8,142.77,7.24]
[1750952995509,5.19861546,142.79,142.77,7.24]
[1750952995706,6.46901324,142.83,142.78,18.79181043]
[1750952995707,5.19861546,142.81,142.78,18.79181043]
[1750952995909,5.19861546,142.82,142.78,18.79181043]
[1750952996206,5.19861546,142.81,142.78,18.79181043]
[1750952996536,5.19861546,142.84,142.78,18.79181043]
[1750952996735,5.19861546,142.83,142.78,18.79181043]
[1750952996923,5.19861546,142.82,142.78,18.79181043]
[1750952997130,5.19861546,142.81,142.78,18.79181043]
[1750952997318,5.19861546,142.84,142.78,18.79181043]
[1750952997526,5.19861546,142.83,142.78,18.79181043]
[1750952997812,5.19861546,142.82,142.78,18.79181043]
[1750952998004,5.19861546,142.81,142.78,18.79181043]
[1750952998213,5.19861546,142.84,142.78,18.79181043]
[1750952998429,5.19861546,142.83,142.78,107.49181043]
[1750952998754,5.19861546,142.82,142.78,107.49181043]
[1750952999024,5.19861546,142.81,142.78,107.49181043]
[1750952999228,6.46901324,142.84,142.78,107.49181043]
[1750952999531,5.20316567,142.83,142.78,107.49181043]
[1750952999706,5.20316567,142.82,142.78,107.49181043]
[1750952999902,5.20316567,142.81,142.78,107.49181043]
[1750953000216,5.20316567,142.8,142.79,20.30724886]
[1750953002636,5.20316567,142.8,142.79,18.79181043]
[1750953003114,5.20316567,142.8,142.77,7.24]
[1750953003315,5.20316567,142.79,142.75,1.6047]
[1750953003625,5.20316567,142.78,142.76,18.64964886]
[1750953003826,5.20316567,142.77,142.76,18.64964886]
[1750953004030,5.20316567,142.77,142.76,18.79181043]
[1750953004331,5.20316567,142.77,142.76,18.64964886]
[1750953004739,5.20316567,142.77,142.76,18.79181043]
[1750953005133,5.20316567,142.77,142.73,14.91846868]
[1750953005311,5.20923256,142.76,142.73,0.02]
[1750953005509,11.6782458,142.75,142.73,0.02]
[1750953005709,5.20923256,142.74,142.73,0.02]
[1750953006316,5.20923256,142.74,142.71,0.02]
[1750953006605,5.20923256,142.73,142.71,0.02]
[1750953006805,5.20923256,142.72,142.71,0.02]
[1750953009541,12.21508407,142.74,142.71,0.02]
[1750953009741,5.20923256,142.73,142.71,0.02]
[1750953009928,5.20923256,142.72,142.71,0.02]
[1750953010133,5.20923256,142.73,142.71,0.02]
[1750953011122,12.2154814,142.73,142.71,0.02]
[1750953011320,5.20923256,142.72,142.68,0.02]
[1750953012041,5.20923256,142.73,142.68,0.02]
[1750953013133,5.20923256,142.75,142.68,0.02]
[1750953013543,12.21457772,142.75,142.68,0.02]
[1750953013767,5.20923256,142.75,142.68,0.02]
[1750953013926,12.21460483,142.75,142.68,0.02]
[1750953014333,5.20923256,142.74,142.68,0.02]
[1750953015146,7.00623554,142.73,142.68,0.02]
[1750953015446,12.2154681,142.73,142.68,0.02]
[1750953016443,24.52182441,142.73,142.68,0.02]
[1750953016620,6.046,142.72,142.68,0.0196057]
[1750953016824,5.20923256,142.71,142.68,0.0196057]
[1750953017025,7.00770847,142.7,142.68,0.0196057]
[1750953017440,12.21694103,142.7,142.68,0.0196057]
[1750953019040,5.20923256,142.7,142.68,0.0196057]
[1750953019547,35.28923256,142.71,142.68,0.0196057]
[1750953020059,1.5009,142.73,142.68,0.0196057]
[1750953020060,30.08,142.74,142.68,0.0196057]
[1750953021142,7.00623554,142.73,142.68,0.0196057]
[1750953021348,12.17240793,142.73,142.68,0.0196057]
[1750953024155,5.16617239,142.73,142.68,0.0196057]
[1750953024327,37.08606444,142.74,142.68,0.0196057]
[1750953024654,5.16617239,142.73,142.68,0.0196057]
[1750953025238,12.1728135,142.73,142.68,0.0196057]
[1750953026850,5.16617239,142.73,142.68,0.0196057]
[1750953027936,12.17247459,142.73,142.68,0.0196057]
[1750953030239,0.14216157,142.71,142.68,0.0196057]
[1750953030458,30.04,142.7,142.65,0.02]
[1750953031532,7.00819959,142.69,142.65,0.02]
[1750953031756,12.17437198,142.69,142.65,0.02]
[1750953035547,5.15532964,142.72,142.65,6.89774897]
[1750953035756,5.15532964,142.75,142.69,0.14216157]
[1750953036068,5.15532964,142.75,142.68,25.38523626]
[1750953036069,0.04,142.76,142.73,18.79181043]
[1750953040064,0.04,142.76,142.72,1.6018]
[1750953040280,0.04,142.76,142.71,7.04]
[1750953041353,0.04,142.76,142.68,1.6472]
[1750953041658,30.04,142.76,142.69,18.64964886]
[1750953042250,7.00525394,142.75,142.69,18.64964886]
[1750953042760,12.16058358,142.75,142.68,1.6472]
[1750953044162,29.67371843,142.75,142.68,1.6472]
[1750953044373,5.15532964,142.74,142.65,7.0]
[1750953044671,11.76650445,142.73,142.65,0.02]
[1750953044879,5.15532964,142.72,142.65,0.02]
[1750953045045,41.62434288,142.71,142.65,0.02]
[1750953045245,5.15532964,142.7,142.65,0.02]
[1750953045864,5.15532964,142.69,142.65,0.02]
[1750953046070,5.15532964,142.7,142.65,0.02]
[1750953046253,5.15532964,142.69,142.65,0.02]
[1750953046570,7.00844048,142.69,142.65,0.02]
[1750953046765,12.16377012,142.69,142.65,0.02]
[1750953047477,5.15532964,142.68,142.65,0.02]
[1750953047976,5.15532964,142.69,142.65,0.02]
[1750953048145,5.15532964,142.68,142.65,0.02]
[1750953048349,5.15532964,142.69,142.65,0.02]
[1750953048567,5.15532964,142.7,142.65,0.02]
[1750953048776,5.15532964,142.69,142.65,0.02]
[1750953049077,5.15532964,142.7,142.65,0.02]
[1750953049955,30.0,142.71,142.65,0.02]
[1750953050161,5.15532964,142.7,142.66,0.14216157]
[1750953050356,5.15532964,142.72,142.66,0.14216157]
[1750953050548,5.15532964,142.71,142.66,0.14216157]
[1750953050753,5.15532964,142.73,142.66,0.14216157]
[1750953050974,5.15532964,142.72,142.68,0.14216157]
[1750953051162,5.15532964,142.71,142.68,0.14216157]
[1750953051355,5.15532964,142.73,142.68,0.14216157]
[1750953051558,5.15532964,142.72,142.68,0.14216157]
[1750953051871,5.15532964,142.71,142.68,0.14216157]
[1750953052056,5.15532964,142.73,142.68,0.14216157]
[1750953052260,5.15532964,142.72,142.69,18.64964886]
[1750953052469,5.15532964,142.74,142.69,18.64964886]
[1750953052669,5.15532964,142.73,142.69,18.64964886]
[1750953052869,5.15532964,142.74,142.7,0.14216157]
[1750953053054,5.15532964,142.73,142.7,0.14216157]
[1750953053255,5.15532964,142.75,142.7,0.14216157]
[1750953054679,0.04,142.76,142.7,0.14216157]
[1750953054873,5.19532964,142.76,142.7,0.14216157]
[1750953055176,0.04,142.76,142.7,0.14216157]
[1750953055376,5.19532964,142.76,142.7,0.14216157]
[1750953055681,0.04,142.76,142.7,0.14216157]
[1750953055863,5.19532964,142.76,142.7,0.14216157]
[1750953056067,0.04,142.76,142.7,0.14216157]
[1750953056268,5.19532964,142.76,142.7,0.14216157]
[1750953056468,5.15532964,142.75,142.7,0.14216157]
[1750953056663,5.15532964,142.75,142.69,18.64964886]
[1750953057081,5.15532964,142.75,142.7,0.14216157]
[1750953059179,12.16061508,142.75,142.69,18.64964886]
[1750953060654,5.15532964,142.75,142.69,18.64964886]
[1750953060858,5.15532964,142.75,142.7,0.14216157]
[1750953061316,5.19532964,142.76,142.7,6.23266157]
[1750953061461,0.04,142.76,142.72,0.14216157]
[1750953061968,0.04,142.76,142.74,0.14216157]
[1750953065860,0.04,142.76,142.75,20.38731043]
[1750953066065,0.04,142.76,142.75,30.50306633]
[1750953066364,0.04,142.76,142.75,20.38731043]
[1750953068383,0.04,142.76,142.75,119.48738947]
[1750953068584,0.04,142.79,142.76,24.85221043]
[1750953068774,0.04,142.79,142.78,28.90756633]
[1750953069864,0.04,142.79,142.78,117.89188947]
[1750953070088,0.04,142.79,142.78,124.89567151]
[1750953070276,0.04,142.79,142.78,117.89188947]
[1750953070680,0.04,142.79,142.78,107.49181043]
[1750953071894,0.04,142.79,142.78,117.60756633]
[1750953073368,0.04,142.79,142.78,18.79181043]
[1750953073590,0.04,142.79,142.77,18.64964886]
[1750953074893,0.04,142.79,142.78,0.14216157]
[1750953080197,0.04,142.79,142.78,117.89188947]
[1750953081277,0.04,142.79,142.78,132.17094971]
[1750953081776,0.04,142.79,142.78,115.05141177]
[1750953081978,0.04,142.79,142.78,122.05519381]
[1750953083476,0.04,142.79,142.78,107.77613357]
[1750953083678,0.04,142.79,142.78,107.34964886]
[1750953083989,0.04,142.79,142.78,117.89188947]
[1750953084590,0.04,142.79,142.78,118.59226767]
[1750953085787,0.04,142.79,142.78,125.59604971]
[1750953086178,0.04,142.79,142.78,108.47651177]
[1750953088088,0.04,142.79,142.78,18.64964886]
[1750953088288,0.04,142.79,142.75,95.62]
[1750953088494,0.04,142.79,142.76,18.64964886]
[1750953089234,0.04,142.79,142.77,0.14216157]
[1750953097706,0.04,142.79,142.77,88.84216157]
[1750953100640,0.04,142.79,142.77,88.7]
[1750953100808,5.15532964,142.78,142.77,88.7]
[1750953103742,5.15532964,142.78,142.75,6.92]
[1750953103966,5.15532964,142.77,142.75,6.92]
[1750953104127,5.15532964,142.78,142.75,6.92]
[1750953104328,5.15532964,142.77,142.75,6.92]
[1750953104626,5.15532964,142.78,142.75,6.92]
[1750953104840,5.15532964,142.77,142.75,6.92]
[1750953105054,5.15532964,142.78,142.75,6.92]
[1750953105359,5.15532964,142.77,142.75,6.92]
[1750953105559,5.15532964,142.78,142.75,6.92]
[1750953105764,5.15532964,142.77,142.75,6.92]
[1750953105932,5.15532964,142.76,142.75,6.92]
[1750953106132,5.15532964,142.78,142.75,6.92]
[1750953106329,5.15532964,142.77,142.75,6.92]
[1750953106543,5.15532964,142.76,142.75,6.92]
[1750953106727,5.15532964,142.78,142.75,6.92]
[1750953106928,5.15532964,142.77,142.75,6.92]
[1750953107155,5.15532964,142.76,142.75,6.92]
[1750953107456,5.15532964,142.78,142.75,6.92]
[1750953107648,6.50901324,142.79,142.75,6.92]
[1750953107649,5.15532964,142.77,142.75,6.92]
[1750953107939,5.15532964,142.76,142.75,6.92]
[1750953108124,5.15532964,142.78,142.75,6.92]
[1750953108326,5.15532964,142.77,142.75,6.92]
[1750953108528,5.15532964,142.76,142.75,6.92]
[1750953108727,5.15532964,142.78,142.75,6.92]
[1750953108956,5.15532964,142.77,142.75,6.92]
[1750953109140,5.15532964,142.76,142.75,6.92]
[1750953109346,5.15532964,142.76,142.7,88.72]
[1750953109549,5.15532964,142.75,142.71,18.64964886]
[1750953109755,5.15532964,142.74,142.71,18.64964886]
[1750953109956,5.15532964,142.73,142.7,18.66964886]
[1750953110267,5.15532964,142.76,142.71,0.14216157]
[1750953110459,5.15532964,142.75,142.73,0.14216157]
[1750953110627,5.15532964,142.77,142.73,0.14216157]
[1750953110959,5.15532964,142.76,142.73,0.14216157]
[1750953111132,5.15532964,142.75,142.73,0.14216157]
[1750953111332,5.15532964,142.78,142.73,0.14216157]
[1750953111634,5.15532964,142.77,142.73,0.14216157]
[1750953111836,5.15532964,142.76,142.73,0.14216157]
[1750953112059,5.15532964,142.75,142.73,0.14216157]
[1750953112243,5.15532964,142.78,142.73,0.14216157]
[1750953112445,0.04,142.79,142.73,0.14216157]
[1750953114055,0.04,142.79,142.75,0.14216157]
[1750953115183,5.19672681,142.78,142.75,0.14216157]
[1750953115354,5.19672681,142.77,142.75,0.14216157]
[1750953115532,5.19672681,142.78,142.75,0.14216157]
[1750953118434,5.19672681,142.78,142.75,88.84216157]
[1750953121890,5.19672681,142.78,142.76,18.64964886]
[1750953122280,5.19672681,142.78,142.75,18.79181043]
[1750953122502,5.19672681,142.78,142.75,18.64964886]
[1750953122731,5.19672681,142.78,142.76,0.14216157]
[1750953124001,5.19672681,142.77,142.75,18.64964886]
[1750953124201,5.19672681,142.78,142.75,18.64964886]
[1750953124402,5.19672681,142.77,142.75,18.64964886]
[1750953124698,5.19672681,142.78,142.76,0.14216157]
[1750953124902,5.19672681,142.78,142.75,12.09181043]
[1750953125097,0.04,142.79,142.75,12.09181043]
[1750953125299,5.23672681,142.79,142.75,12.09181043]
[1750953125524,0.04,142.79,142.75,12.09181043]
[1750953125901,5.23672681,142.79,142.75,100.79181043]
[1750953126090,0.04,142.79,142.75,100.79181043]
[1750953126297,0.04,142.79,142.76,10.11451951]
[1750953126504,0.04,142.79,142.76,10.81499583]
[1750953126701,0.04,142.79,142.77,11.77851951]
[1750953126993,0.04,142.79,142.78,18.79181043]
[1750953131104,0.04,142.79,142.77,88.7]
[1750953131326,5.23672681,142.79,142.77,88.7]
[1750953131507,0.04,142.79,142.77,88.7]
[1750953131710,5.19672681,142.78,142.77,107.34964886]
[1750953133218,5.19672681,142.78,142.77,18.64964886]
[1750953134729,5.19672681,142.78,142.77,18.79181043]
[1750953136031,5.19672681,142.78,142.77,18.64964886]
[1750953142505,5.19672681,142.78,142.72,0.70067264]
[1750953142717,5.19672681,142.78,142.65,0.02]
[1750953142718,6.159,142.72,142.65,0.02]
[1750953142932,6.48630613,142.69,142.65,0.02]
[1750953143115,5.19672681,142.68,142.65,0.02]
[1750953143312,5.19672681,142.67,142.65,0.02]
[1750953143526,5.19672681,142.66,142.65,0.02]
[1750953143732,5.19672681,142.68,142.65,0.02]
[1750953143928,5.19672681,142.7,142.65,0.02]
[1750953144115,5.19672681,142.69,142.65,0.02]
[1750953144435,5.19672681,142.7,142.65,0.02]
[1750953144635,5.19672681,142.71,142.65,0.02]
[1750953144937,22.45721698,142.72,142.59,0.02]
[1750953144938,8.80337292,142.66,142.59,0.02]
[1750953145107,8.80337292,142.66,142.49,44.28303433]
[1750953145108,6.315,142.61,142.49,44.28303433]
[1750953145312,6.315,142.61,142.49,37.26518774]
[1750953145538,6.315,142.61,142.49,44.00727737]
[1750953145710,6.315,142.61,142.5,51.8182232]
[1750953145914,6.315,142.61,142.52,19.07613357]
[1750953146342,6.315,142.61,142.52,18.64964886]
[1750953147416,6.315,142.61,142.53,0.14216157]
[1750953147623,6.5464,142.65,142.55,18.79181043]
[1750953147835,13.55673592,142.65,142.55,18.79181043]
[1750953148027,18.69808923,142.65,142.55,18.79181043]
[1750953148223,18.69808923,142.65,142.55,0.14216157]
[1750953149116,11.68775331,142.65,142.55,0.14216157]